Workbook

Sheet まとめ(Input)
A1: INPUT
B2: 【前提条件】
J3: 【費用回収年を重視する場合】 | S3: 【未利用消化ガス全量利用を重視する場合】 | AB3: 備考
J4: 供給処理場1 | M4: 供給処理場2 | P4: 集約処理場 | S4: 供給処理場1 | V4: 供給処理場2 | Y4: 集約処理場
B5: 装置構成 | C5: PSA | J5: 〇 | M5: 〇 | P5: × | S5: 〇 | V5: 〇 | Y5: × | AB5: 装置構成は変更不可
C6: 吸蔵装置 | J6: 〇 | M6: 〇 | P6: × | S6: 〇 | V6: 〇 | Y6: ×
C7: シロキサン除去装置 | J7: × | M7: × | P7: 〇 | S7: × | V7: × | Y7: 〇
C8: 低濃度CH4対応型余剰ガス燃焼装置 | J8: × | M8: × | P8: × | S8: 〇 | V8: 〇 | Y8: ×
B9: 装置仕様 | C9: ボイラ等既存設備の分岐位置 | J9: 二次側 | M9: 二次側 | P9: PSA無し | S9: 二次側 | V9: 二次側 | Y9: PSA無し | AB9: オフガス返送配管の一次側or二次側を選択 | AL9: 一次側
C10: PSAリサイクル率 | H10: [-] | J10: 0.9 | M10: 0.9 | P10: - | S10: 成り行き | V10: 成り行き | Y10: - | AB10: PSA設定値 | AL10: 二次側
C11: PSA精製ガスCH4濃度 | H11: [vol%] | J11: 90 | M11: 90 | P11: - | S11: 90 | V11: 90 | Y11: - | AB11: 発電機仕様より決定 | AL11: PSA無し
C12: PSAオフガスCH4濃度 | H12: [vol%] | J12: 成り行き | M12: 成り行き | P12: - | S12: 20 | V12: 20 | Y12: - | AB12: 新設余剰ガス燃焼装置仕様より決定
C13: ガスホルダCH4濃度(要求) | H13: [vol%] | J13: 50 | M13: 50 | P13: 成り行き | S13: 成り行き | V13: 成り行き | Y13: 成り行き | AB13: 既設ボイラ、余剰ガス燃焼装置仕様より決定
C14: 発電機出力 | J14: 360 | M14: kW (> max | P14: ='まとめ(Output)'!AF33/'まとめ(Output)'!AH33 -> 355.3057811 | R14: ) | S14: 400 | V14: kW (> max | Y14: ='まとめ(Output)'!AF60/'まとめ(Output)'!AH60 -> 390.5628372 | AA14: ) | AB14: maxより大きい出力(一の位切り上げ）を選定
B15: 輸送条件 | C15: 吸蔵時間 | H15: [時間/回] | J15: 24 | M15: 24 | P15: - | S15: 24 | V15: 24 | Y15: - | AB15: 運転スケジュールより決定
C16: 吸蔵容器数 | H16: [基] | J16: 3 | M16: 3 | P16: - | S16: 3 | V16: 3 | Y16: - | AB16: 運転スケジュールより決定
C17: 運搬日中拘束時間 | H17: [時間] | J17: 3.5 | M17: 3.5 | P17: - | S17: 3.5 | V17: 3.5 | Y17: - | AB17: 運転スケジュールより決定
C18: 運搬夜間拘束時間 | H18: [時間] | J18: 0 | M18: 0 | P18: - | S18: 0 | V18: 0 | Y18: - | AB18: 運転スケジュールより決定
C19: 往復回数 | H19: [回] | J19: 1 | M19: 1 | P19: - | S19: 1 | V19: 1 | Y19: - | AB19: 運転スケジュールより決定
C20: 集約処理場までの距離 | H20: [km] | J20: 供給処理場1 ⇔ 集約処理場 ： | Q20: 15 | S20: 供給処理場2 ⇔ 集約処理場 ： | Z20: 15 | AB20: 処理場条件より決定
C21: トラック燃料費 | H21: [円/ℓ] | J21: 102 | AB21: 軽油価格
C22: トラック燃費 | H22: [km/ℓ] | J22: 4.25 | AB22: トラック仕様より決定
B23: 補助燃料 | H23: GHG換算係数 | O23: エネルギー換算係数 | V23: その他
B24: 価格 | D24: 320 | F24: 円/Nm3 | H24: 電力 | J24: 0.512 | L24: kg-CO2/kWh | O24: 電力 | Q24: 9.484 | S24: MJ/kWh | V24: 稼働日数 | Y24: 350 | AA24: 日/年 | AC24: 売電価格 | AF24: 15 | AH24: 円/kWh
B25: 基本料金 | D25: 1.5 | F25: 千円/月 | H25: 軽油 | J25: 2.58 | L25: kg-CO2/ℓ | O25: 軽油 | Q25: 38.04 | S25: MJ/ℓ | V25: 人件費単価 | Y25: 3 | AA25: 千円/時間 | AC25: 買電価格 | AF25: 15 | AH25: 円/kWh
B26: 使用量 | D26: 2 | F26: Nm3/日 | H26: プロパンガス | J26: 3 | L26: kg-CO2/kg | O26: プロパンガス | Q26: 50.06 | S26: MJ/kg | V26: 現場作業 | Y26: 8 | AA26: 時間/月
B28: 【消化ガス情報(既存設備の状況調査)】
B29: バイオガス発生量FD[Nm3/日]
F30: 4月 | H30: 5月 | J30: 6月 | L30: 7月 | N30: 8月 | P30: 9月 | R30: 10月 | T30: 11月 | V30: 12月 | X30: 1月 | Z30: 2月 | AB30: 3月 | AD30: 年平均 | AF30: 最大 | AH30: CH4濃度
B31: 供給処理場1 | F31: 765.9973266 | H31: 760.6149229 | J31: 749.9637818 | L31: 733.8334969 | N31: 706.63825 | P31: 676.6139938 | R31: 674.9715784 | T31: 676.5541409 | V31: 704.7949187 | X31: 724.7511469 | Z31: 722.4183577 | AB31: 734.4240982 | AD31: =AVERAGE(F31:AC31) -> 719.2980011 | AF31: =MAX(F31:AC31) -> 765.9973266 | AH31: 60
B32: 供給処理場2 | F32: 765.9973266 | H32: 760.6149229 | J32: 749.9637818 | L32: 733.8334969 | N32: 706.63825 | P32: 676.6139938 | R32: 674.9715784 | T32: 676.5541409 | V32: 704.7949187 | X32: 724.7511469 | Z32: 722.4183577 | AB32: 734.4240982 | AD32: =AVERAGE(F32:AC32) -> 719.2980011 | AF32: =MAX(F32:AC32) -> 765.9973266 | AH32: 60
B33: 集約処理場 | F33: 3194.770424 | H33: 3172.321855 | J33: 3127.898788 | L33: 3060.623674 | N33: 2947.199557 | P33: 2821.976397 | R33: 2815.126321 | T33: 2821.726767 | V33: 2939.511514 | X33: 3022.743616 | Z33: 3013.014175 | AB33: 3063.086914 | AD33: =AVERAGE(F33:AC33) -> 3000 | AF33: =MAX(F33:AC33) -> 3194.770424 | AH33: 60
B34: ボイラー使用量FB1[Nm3/日]
F35: 4月 | H35: 5月 | J35: 6月 | L35: 7月 | N35: 8月 | P35: 9月 | R35: 10月 | T35: 11月 | V35: 12月 | X35: 1月 | Z35: 2月 | AB35: 3月 | AD35: 年平均 | AF35: 最大
B36: 供給処理場1 | F36: 240.5264466 | H36: 212.2292176 | J36: 198.0806031 | L36: 169.7833741 | N36: 127.3375305 | P36: 127.3375305 | R36: 169.7833741 | T36: 226.3778321 | V36: 240.5264466 | X36: 297.1209046 | Z36: 311.2695191 | AB36: 311.2695191 | AD36: =AVERAGE(F36:AC36) -> 219.3035248 | AF36: =MAX(F36:AC36) -> 311.2695191
B37: 供給処理場2 | F37: 240.5264466 | H37: 212.2292176 | J37: 198.0806031 | L37: 169.7833741 | N37: 127.3375305 | P37: 127.3375305 | R37: 169.7833741 | T37: 226.3778321 | V37: 240.5264466 | X37: 297.1209046 | Z37: 311.2695191 | AB37: 311.2695191 | AD37: =AVERAGE(F37:AC37) -> 219.3035248 | AF37: =MAX(F37:AC37) -> 311.2695191
B38: 集約処理場 | F38: 1003.171618 | H38: 885.1514279 | J38: 826.1413327 | L38: 708.1211423 | N38: 531.0908567 | P38: 531.0908567 | R38: 708.1211423 | T38: 944.1615231 | V38: 1003.171618 | X38: 1239.211999 | Z38: 1298.222094 | AB38: 1298.222094 | AD38: =AVERAGE(F38:AC38) -> 914.6564755 | AF38: =MAX(F38:AC38) -> 1298.222094

Sheet まとめ(Output)
A1: OUTPUT
B2: 未利用消化ガス量FU | AH2: [Nm3/日]
F3: 4月 | H3: 5月 | J3: 6月 | L3: 7月 | N3: 8月 | P3: 9月 | R3: 10月 | T3: 11月 | V3: 12月 | X3: 1月 | Z3: 2月 | AB3: 3月 | AD3: 年平均 | AF3: 最大 | AH3: CH4濃度
B4: 供給処理場1 | F4: ='まとめ(Input)'!F31-'まとめ(Input)'!F36 -> 525.47088 | H4: ='まとめ(Input)'!H31-'まとめ(Input)'!H36 -> 548.3857053 | J4: ='まとめ(Input)'!J31-'まとめ(Input)'!J36 -> 551.8831788 | L4: ='まとめ(Input)'!L31-'まとめ(Input)'!L36 -> 564.0501228 | N4: ='まとめ(Input)'!N31-'まとめ(Input)'!N36 -> 579.3007195 | P4: ='まとめ(Input)'!P31-'まとめ(Input)'!P36 -> 549.2764632 | R4: ='まとめ(Input)'!R31-'まとめ(Input)'!R36 -> 505.1882044 | T4: ='まとめ(Input)'!T31-'まとめ(Input)'!T36 -> 450.1763089 | V4: ='まとめ(Input)'!V31-'まとめ(Input)'!V36 -> 464.2684721 | X4: ='まとめ(Input)'!X31-'まとめ(Input)'!X36 -> 427.6302423 | Z4: ='まとめ(Input)'!Z31-'まとめ(Input)'!Z36 -> 411.1488386 | AB4: ='まとめ(Input)'!AB31-'まとめ(Input)'!AB36 -> 423.1545791 | AD4: =MAX(AVERAGE(F4:AC4),'まとめ(Input)'!AD31-'まとめ(Input)'!AD36) -> 499.9944763 | AF4: =MAX(F4:AC4,'まとめ(Input)'!AF31-'まとめ(Input)'!AF36) -> 579.3007195 | AH4: ='まとめ(Input)'!AH31 -> 60
B5: 供給処理場2 | F5: ='まとめ(Input)'!F32-'まとめ(Input)'!F37 -> 525.47088 | H5: ='まとめ(Input)'!H32-'まとめ(Input)'!H37 -> 548.3857053 | J5: ='まとめ(Input)'!J32-'まとめ(Input)'!J37 -> 551.8831788 | L5: ='まとめ(Input)'!L32-'まとめ(Input)'!L37 -> 564.0501228 | N5: ='まとめ(Input)'!N32-'まとめ(Input)'!N37 -> 579.3007195 | P5: ='まとめ(Input)'!P32-'まとめ(Input)'!P37 -> 549.2764632 | R5: ='まとめ(Input)'!R32-'まとめ(Input)'!R37 -> 505.1882044 | T5: ='まとめ(Input)'!T32-'まとめ(Input)'!T37 -> 450.1763089 | V5: ='まとめ(Input)'!V32-'まとめ(Input)'!V37 -> 464.2684721 | X5: ='まとめ(Input)'!X32-'まとめ(Input)'!X37 -> 427.6302423 | Z5: ='まとめ(Input)'!Z32-'まとめ(Input)'!Z37 -> 411.1488386 | AB5: ='まとめ(Input)'!AB32-'まとめ(Input)'!AB37 -> 423.1545791 | AD5: =MAX(AVERAGE(F5:AC5),'まとめ(Input)'!AD32-'まとめ(Input)'!AD37) -> 499.9944763 | AF5: =MAX(F5:AC5,'まとめ(Input)'!AF32-'まとめ(Input)'!AF37) -> 579.3007195 | AH5: ='まとめ(Input)'!AH32 -> 60
B6: 集約処理場 | F6: ='まとめ(Input)'!F33 -> 3194.770424 | H6: ='まとめ(Input)'!H33 -> 3172.321855 | J6: ='まとめ(Input)'!J33 -> 3127.898788 | L6: ='まとめ(Input)'!L33 -> 3060.623674 | N6: ='まとめ(Input)'!N33 -> 2947.199557 | P6: ='まとめ(Input)'!P33 -> 2821.976397 | R6: ='まとめ(Input)'!R33 -> 2815.126321 | T6: ='まとめ(Input)'!T33 -> 2821.726767 | V6: ='まとめ(Input)'!V33 -> 2939.511514 | X6: ='まとめ(Input)'!X33 -> 3022.743616 | Z6: ='まとめ(Input)'!Z33 -> 3013.014175 | AB6: ='まとめ(Input)'!AB33 -> 3063.086914 | AD6: =MAX(AVERAGE(F6:AC6),'まとめ(Input)'!AD33-'まとめ(Input)'!AD38) -> 3000 | AF6: =MAX(F6:AC6,'まとめ(Input)'!AF33-'まとめ(Input)'!AF38) -> 3194.770424 | AH6: ='まとめ(Input)'!AH33 -> 60
B8: 【費用回収年を重視する場合】
B9: 装置構成
F10: PSA(位置) | H10: 吸蔵装置 | J10: シロキサン除去装置 | L10: 余剰ガス燃焼装置 | N10: 既存ボイラ
B11: 供給処理場1 | F11: ='まとめ(Input)'!J9 -> 二次側 | H11: =IF(F11="PSA無し","×","〇") -> 〇 | J11: =IF(F11="PSA無し","〇","×") -> × | L11: × | N11: 〇
B12: 供給処理場2 | F12: ='まとめ(Input)'!M9 -> 二次側 | H12: =IF(F12="PSA無し","×","〇") -> 〇 | J12: =IF(F12="PSA無し","〇","×") -> × | L12: × | N12: 〇
B13: 集約処理場 | F13: ='まとめ(Input)'!P9 -> PSA無し | H13: =IF(F13="PSA無し","×","〇") -> × | J13: =IF(F13="PSA無し","〇","×") -> 〇 | L13: × | N13: ×
B14: 利用可能消化ガス量FA | AH14: [Nm3/日]
F15: 4月 | H15: 5月 | J15: 6月 | L15: 7月 | N15: 8月 | P15: 9月 | R15: 10月 | T15: 11月 | V15: 12月 | X15: 1月 | Z15: 2月 | AB15: 3月 | AD15: 年平均 | AF15: 最大 | AH15: CH4濃度
B16: 供給処理場1 | F16: =IF('まとめ(Input)'!$J$9="PSA無し",F4,IF('まとめ(Input)'!$J$9="二次側",'まとめ(Input)'!F31,F4)*('まとめ(Input)'!$AH$31-'まとめ(Input)'!$J$13)/('まとめ(Input)'!$AH$31*'まとめ(Input)'!$J$10*(1-'まとめ(Input)'!$J$13/'まとめ(Input)'!$J$11))) -> 319.1655528 | H16: =IF('まとめ(Input)'!$J$9="PSA無し",H4,IF('まとめ(Input)'!$J$9="二次側",'まとめ(Input)'!H31,H4)*('まとめ(Input)'!$AH$31-'まとめ(Input)'!$J$13)/('まとめ(Input)'!$AH$31*'まとめ(Input)'!$J$10*(1-'まとめ(Input)'!$J$13/'まとめ(Input)'!$J$11))) -> 316.9228845 | J16: =IF('まとめ(Input)'!$J$9="PSA無し",J4,IF('まとめ(Input)'!$J$9="二次側",'まとめ(Input)'!J31,J4)*('まとめ(Input)'!$AH$31-'まとめ(Input)'!$J$13)/('まとめ(Input)'!$AH$31*'まとめ(Input)'!$J$10*(1-'まとめ(Input)'!$J$13/'まとめ(Input)'!$J$11))) -> 312.4849091 | L16: =IF('まとめ(Input)'!$J$9="PSA無し",L4,IF('まとめ(Input)'!$J$9="二次側",'まとめ(Input)'!L31,L4)*('まとめ(Input)'!$AH$31-'まとめ(Input)'!$J$13)/('まとめ(Input)'!$AH$31*'まとめ(Input)'!$J$10*(1-'まとめ(Input)'!$J$13/'まとめ(Input)'!$J$11))) -> 305.763957 | N16: =IF('まとめ(Input)'!$J$9="PSA無し",N4,IF('まとめ(Input)'!$J$9="二次側",'まとめ(Input)'!N31,N4)*('まとめ(Input)'!$AH$31-'まとめ(Input)'!$J$13)/('まとめ(Input)'!$AH$31*'まとめ(Input)'!$J$10*(1-'まとめ(Input)'!$J$13/'まとめ(Input)'!$J$11))) -> 294.4326042 | P16: =IF('まとめ(Input)'!$J$9="PSA無し",P4,IF('まとめ(Input)'!$J$9="二次側",'まとめ(Input)'!P31,P4)*('まとめ(Input)'!$AH$31-'まとめ(Input)'!$J$13)/('まとめ(Input)'!$AH$31*'まとめ(Input)'!$J$10*(1-'まとめ(Input)'!$J$13/'まとめ(Input)'!$J$11))) -> 281.9224974 | R16: =IF('まとめ(Input)'!$J$9="PSA無し",R4,IF('まとめ(Input)'!$J$9="二次側",'まとめ(Input)'!R31,R4)*('まとめ(Input)'!$AH$31-'まとめ(Input)'!$J$13)/('まとめ(Input)'!$AH$31*'まとめ(Input)'!$J$10*(1-'まとめ(Input)'!$J$13/'まとめ(Input)'!$J$11))) -> 281.2381577 | T16: =IF('まとめ(Input)'!$J$9="PSA無し",T4,IF('まとめ(Input)'!$J$9="二次側",'まとめ(Input)'!T31,T4)*('まとめ(Input)'!$AH$31-'まとめ(Input)'!$J$13)/('まとめ(Input)'!$AH$31*'まとめ(Input)'!$J$10*(1-'まとめ(Input)'!$J$13/'まとめ(Input)'!$J$11))) -> 281.8975587 | V16: =IF('まとめ(Input)'!$J$9="PSA無し",V4,IF('まとめ(Input)'!$J$9="二次側",'まとめ(Input)'!V31,V4)*('まとめ(Input)'!$AH$31-'まとめ(Input)'!$J$13)/('まとめ(Input)'!$AH$31*'まとめ(Input)'!$J$10*(1-'まとめ(Input)'!$J$13/'まとめ(Input)'!$J$11))) -> 293.6645495 | X16: =IF('まとめ(Input)'!$J$9="PSA無し",X4,IF('まとめ(Input)'!$J$9="二次側",'まとめ(Input)'!X31,X4)*('まとめ(Input)'!$AH$31-'まとめ(Input)'!$J$13)/('まとめ(Input)'!$AH$31*'まとめ(Input)'!$J$10*(1-'まとめ(Input)'!$J$13/'まとめ(Input)'!$J$11))) -> 301.9796446 | Z16: =IF('まとめ(Input)'!$J$9="PSA無し",Z4,IF('まとめ(Input)'!$J$9="二次側",'まとめ(Input)'!Z31,Z4)*('まとめ(Input)'!$AH$31-'まとめ(Input)'!$J$13)/('まとめ(Input)'!$AH$31*'まとめ(Input)'!$J$10*(1-'まとめ(Input)'!$J$13/'まとめ(Input)'!$J$11))) -> 301.007649 | AB16: =IF('まとめ(Input)'!$J$9="PSA無し",AB4,IF('まとめ(Input)'!$J$9="二次側",'まとめ(Input)'!AB31,AB4)*('まとめ(Input)'!$AH$31-'まとめ(Input)'!$J$13)/('まとめ(Input)'!$AH$31*'まとめ(Input)'!$J$10*(1-'まとめ(Input)'!$J$13/'まとめ(Input)'!$J$11))) -> 306.0100409 | AD16: =AVERAGE(F16:AC16) -> 299.7075004 | AF16: =MAX(F16:AC16) -> 319.1655528 | AH16: ='まとめ(Input)'!AH31 -> 60
B17: 供給処理場2 | F17: =IF('まとめ(Input)'!$M$9="PSA無し",F5,IF('まとめ(Input)'!$M$9="二次側",'まとめ(Input)'!F32,F5)*('まとめ(Input)'!$AH$32-'まとめ(Input)'!$M$13)/('まとめ(Input)'!$AH$32*'まとめ(Input)'!$M$10*(1-'まとめ(Input)'!$M$13/'まとめ(Input)'!$M$11))) -> 319.1655528 | H17: =IF('まとめ(Input)'!$M$9="PSA無し",H5,IF('まとめ(Input)'!$M$9="二次側",'まとめ(Input)'!H32,H5)*('まとめ(Input)'!$AH$32-'まとめ(Input)'!$M$13)/('まとめ(Input)'!$AH$32*'まとめ(Input)'!$M$10*(1-'まとめ(Input)'!$M$13/'まとめ(Input)'!$M$11))) -> 316.9228845 | J17: =IF('まとめ(Input)'!$M$9="PSA無し",J5,IF('まとめ(Input)'!$M$9="二次側",'まとめ(Input)'!J32,J5)*('まとめ(Input)'!$AH$32-'まとめ(Input)'!$M$13)/('まとめ(Input)'!$AH$32*'まとめ(Input)'!$M$10*(1-'まとめ(Input)'!$M$13/'まとめ(Input)'!$M$11))) -> 312.4849091 | L17: =IF('まとめ(Input)'!$M$9="PSA無し",L5,IF('まとめ(Input)'!$M$9="二次側",'まとめ(Input)'!L32,L5)*('まとめ(Input)'!$AH$32-'まとめ(Input)'!$M$13)/('まとめ(Input)'!$AH$32*'まとめ(Input)'!$M$10*(1-'まとめ(Input)'!$M$13/'まとめ(Input)'!$M$11))) -> 305.763957 | N17: =IF('まとめ(Input)'!$M$9="PSA無し",N5,IF('まとめ(Input)'!$M$9="二次側",'まとめ(Input)'!N32,N5)*('まとめ(Input)'!$AH$32-'まとめ(Input)'!$M$13)/('まとめ(Input)'!$AH$32*'まとめ(Input)'!$M$10*(1-'まとめ(Input)'!$M$13/'まとめ(Input)'!$M$11))) -> 294.4326042 | P17: =IF('まとめ(Input)'!$M$9="PSA無し",P5,IF('まとめ(Input)'!$M$9="二次側",'まとめ(Input)'!P32,P5)*('まとめ(Input)'!$AH$32-'まとめ(Input)'!$M$13)/('まとめ(Input)'!$AH$32*'まとめ(Input)'!$M$10*(1-'まとめ(Input)'!$M$13/'まとめ(Input)'!$M$11))) -> 281.9224974 | R17: =IF('まとめ(Input)'!$M$9="PSA無し",R5,IF('まとめ(Input)'!$M$9="二次側",'まとめ(Input)'!R32,R5)*('まとめ(Input)'!$AH$32-'まとめ(Input)'!$M$13)/('まとめ(Input)'!$AH$32*'まとめ(Input)'!$M$10*(1-'まとめ(Input)'!$M$13/'まとめ(Input)'!$M$11))) -> 281.2381577 | T17: =IF('まとめ(Input)'!$M$9="PSA無し",T5,IF('まとめ(Input)'!$M$9="二次側",'まとめ(Input)'!T32,T5)*('まとめ(Input)'!$AH$32-'まとめ(Input)'!$M$13)/('まとめ(Input)'!$AH$32*'まとめ(Input)'!$M$10*(1-'まとめ(Input)'!$M$13/'まとめ(Input)'!$M$11))) -> 281.8975587 | V17: =IF('まとめ(Input)'!$M$9="PSA無し",V5,IF('まとめ(Input)'!$M$9="二次側",'まとめ(Input)'!V32,V5)*('まとめ(Input)'!$AH$32-'まとめ(Input)'!$M$13)/('まとめ(Input)'!$AH$32*'まとめ(Input)'!$M$10*(1-'まとめ(Input)'!$M$13/'まとめ(Input)'!$M$11))) -> 293.6645495 | X17: =IF('まとめ(Input)'!$M$9="PSA無し",X5,IF('まとめ(Input)'!$M$9="二次側",'まとめ(Input)'!X32,X5)*('まとめ(Input)'!$AH$32-'まとめ(Input)'!$M$13)/('まとめ(Input)'!$AH$32*'まとめ(Input)'!$M$10*(1-'まとめ(Input)'!$M$13/'まとめ(Input)'!$M$11))) -> 301.9796446 | Z17: =IF('まとめ(Input)'!$M$9="PSA無し",Z5,IF('まとめ(Input)'!$M$9="二次側",'まとめ(Input)'!Z32,Z5)*('まとめ(Input)'!$AH$32-'まとめ(Input)'!$M$13)/('まとめ(Input)'!$AH$32*'まとめ(Input)'!$M$10*(1-'まとめ(Input)'!$M$13/'まとめ(Input)'!$M$11))) -> 301.007649 | AB17: =IF('まとめ(Input)'!$M$9="PSA無し",AB5,IF('まとめ(Input)'!$M$9="二次側",'まとめ(Input)'!AB32,AB5)*('まとめ(Input)'!$AH$32-'まとめ(Input)'!$M$13)/('まとめ(Input)'!$AH$32*'まとめ(Input)'!$M$10*(1-'まとめ(Input)'!$M$13/'まとめ(Input)'!$M$11))) -> 306.0100409 | AD17: =AVERAGE(F17:AC17) -> 299.7075004 | AF17: =MAX(F17:AC17) -> 319.1655528 | AH17: ='まとめ(Input)'!AH32 -> 60
B18: 集約処理場 | F18: =F6-IF($N$13="×",0,'まとめ(Input)'!F38) -> 3194.770424 | H18: =H6-IF($N$13="×",0,'まとめ(Input)'!H38) -> 3172.321855 | J18: =J6-IF($N$13="×",0,'まとめ(Input)'!J38) -> 3127.898788 | L18: =L6-IF($N$13="×",0,'まとめ(Input)'!L38) -> 3060.623674 | N18: =N6-IF($N$13="×",0,'まとめ(Input)'!N38) -> 2947.199557 | P18: =P6-IF($N$13="×",0,'まとめ(Input)'!P38) -> 2821.976397 | R18: =R6-IF($N$13="×",0,'まとめ(Input)'!R38) -> 2815.126321 | T18: =T6-IF($N$13="×",0,'まとめ(Input)'!T38) -> 2821.726767 | V18: =V6-IF($N$13="×",0,'まとめ(Input)'!V38) -> 2939.511514 | X18: =X6-IF($N$13="×",0,'まとめ(Input)'!X38) -> 3022.743616 | Z18: =Z6-IF($N$13="×",0,'まとめ(Input)'!Z38) -> 3013.014175 | AB18: =AB6-IF($N$13="×",0,'まとめ(Input)'!AB38) -> 3063.086914 | AD18: =AVERAGE(F18:AC18) -> 3000 | AF18: =MAX(F18:AC18) -> 3194.770424 | AH18: ='まとめ(Input)'!AH33 -> 60
B19: 精製ガス量FP | AH19: [Nm3/日]
F20: 4月 | H20: 5月 | J20: 6月 | L20: 7月 | N20: 8月 | P20: 9月 | R20: 10月 | T20: 11月 | V20: 12月 | X20: 1月 | Z20: 2月 | AB20: 3月 | AD20: 年平均 | AF20: 最大 | AH20: CH4濃度
B21: 供給処理場1 | F21: =F16*$AH$16/$AH$21*'まとめ(Input)'!$J$10 -> 191.4993317 | H21: =H16*$AH$16/$AH$21*'まとめ(Input)'!$J$10 -> 190.1537307 | J21: =J16*$AH$16/$AH$21*'まとめ(Input)'!$J$10 -> 187.4909455 | L21: =L16*$AH$16/$AH$21*'まとめ(Input)'!$J$10 -> 183.4583742 | N21: =N16*$AH$16/$AH$21*'まとめ(Input)'!$J$10 -> 176.6595625 | P21: =P16*$AH$16/$AH$21*'まとめ(Input)'!$J$10 -> 169.1534984 | R21: =R16*$AH$16/$AH$21*'まとめ(Input)'!$J$10 -> 168.7428946 | T21: =T16*$AH$16/$AH$21*'まとめ(Input)'!$J$10 -> 169.1385352 | V21: =V16*$AH$16/$AH$21*'まとめ(Input)'!$J$10 -> 176.1987297 | X21: =X16*$AH$16/$AH$21*'まとめ(Input)'!$J$10 -> 181.1877867 | Z21: =Z16*$AH$16/$AH$21*'まとめ(Input)'!$J$10 -> 180.6045894 | AB21: =AB16*$AH$16/$AH$21*'まとめ(Input)'!$J$10 -> 183.6060245 | AD21: =AVERAGE(F21:AC21) -> 179.8245003 | AF21: =MAX(F21:AC21) -> 191.4993317 | AH21: =IF(F11="PSA無し",'まとめ(Input)'!AH31,'まとめ(Input)'!J11) -> 90
B22: 供給処理場2 | F22: =F17*$AH$17/$AH$22*'まとめ(Input)'!$M$10 -> 191.4993317 | H22: =H17*$AH$17/$AH$22*'まとめ(Input)'!$M$10 -> 190.1537307 | J22: =J17*$AH$17/$AH$22*'まとめ(Input)'!$M$10 -> 187.4909455 | L22: =L17*$AH$17/$AH$22*'まとめ(Input)'!$M$10 -> 183.4583742 | N22: =N17*$AH$17/$AH$22*'まとめ(Input)'!$M$10 -> 176.6595625 | P22: =P17*$AH$17/$AH$22*'まとめ(Input)'!$M$10 -> 169.1534984 | R22: =R17*$AH$17/$AH$22*'まとめ(Input)'!$M$10 -> 168.7428946 | T22: =T17*$AH$17/$AH$22*'まとめ(Input)'!$M$10 -> 169.1385352 | V22: =V17*$AH$17/$AH$22*'まとめ(Input)'!$M$10 -> 176.1987297 | X22: =X17*$AH$17/$AH$22*'まとめ(Input)'!$M$10 -> 181.1877867 | Z22: =Z17*$AH$17/$AH$22*'まとめ(Input)'!$M$10 -> 180.6045894 | AB22: =AB17*$AH$17/$AH$22*'まとめ(Input)'!$M$10 -> 183.6060245 | AD22: =AVERAGE(F22:AC22) -> 179.8245003 | AF22: =MAX(F22:AC22) -> 191.4993317 | AH22: =IF(F12="PSA無し",'まとめ(Input)'!AH32,'まとめ(Input)'!M11) -> 90
B23: オフガス量FO | AH23: [Nm3/日]
F24: 4月 | H24: 5月 | J24: 6月 | L24: 7月 | N24: 8月 | P24: 9月 | R24: 10月 | T24: 11月 | V24: 12月 | X24: 1月 | Z24: 2月 | AB24: 3月 | AD24: 年平均 | AF24: 最大 | AH24: CH4濃度
B25: 供給処理場1 | F25: =F16-F21 -> 127.6662211 | H25: =H16-H21 -> 126.7691538 | J25: =J16-J21 -> 124.9939636 | L25: =L16-L21 -> 122.3055828 | N25: =N16-N21 -> 117.7730417 | P25: =P16-P21 -> 112.768999 | R25: =R16-R21 -> 112.4952631 | T25: =T16-T21 -> 112.7590235 | V25: =V16-V21 -> 117.4658198 | X25: =X16-X21 -> 120.7918578 | Z25: =Z16-Z21 -> 120.4030596 | AB25: =AB16-AB21 -> 122.4040164 | AD25: =AVERAGE(F25:AC25) -> 119.8830002 | AF25: =MAX(F25:AC25) -> 127.6662211 | AH25: =AD16*AH16*(1-'まとめ(Input)'!J10)/('まとめ(Output)'!AD16-'まとめ(Output)'!AD21) -> 15
B26: 供給処理場2 | F26: =F17-F22 -> 127.6662211 | H26: =H17-H22 -> 126.7691538 | J26: =J17-J22 -> 124.9939636 | L26: =L17-L22 -> 122.3055828 | N26: =N17-N22 -> 117.7730417 | P26: =P17-P22 -> 112.768999 | R26: =R17-R22 -> 112.4952631 | T26: =T17-T22 -> 112.7590235 | V26: =V17-V22 -> 117.4658198 | X26: =X17-X22 -> 120.7918578 | Z26: =Z17-Z22 -> 120.4030596 | AB26: =AB17-AB22 -> 122.4040164 | AD26: =AVERAGE(F26:AC26) -> 119.8830002 | AF26: =MAX(F26:AC26) -> 127.6662211 | AH26: =AD17*AH17*(1-'まとめ(Input)'!M10)/('まとめ(Output)'!AD17-'まとめ(Output)'!AD22) -> 15
B27: 発電機利用ガス量(メタン量) | AH27: [Nm3/日]
F28: 4月 | H28: 5月 | J28: 6月 | L28: 7月 | N28: 8月 | P28: 9月 | R28: 10月 | T28: 11月 | V28: 12月 | X28: 1月 | Z28: 2月 | AB28: 3月 | AD28: 年平均 | AF28: 最大 | AH28: 発電機
B29: 供給処理場1 | F29: =F21*$AH$21/100 -> 172.3493985 | H29: =H21*$AH$21/100 -> 171.1383577 | J29: =J21*$AH$21/100 -> 168.7418509 | L29: =L21*$AH$21/100 -> 165.1125368 | N29: =N21*$AH$21/100 -> 158.9936063 | P29: =P21*$AH$21/100 -> 152.2381486 | R29: =R21*$AH$21/100 -> 151.8686051 | T29: =T21*$AH$21/100 -> 152.2246817 | V29: =V21*$AH$21/100 -> 158.5788567 | X29: =X21*$AH$21/100 -> 163.0690081 | Z29: =Z21*$AH$21/100 -> 162.5441305 | AB29: =AB21*$AH$21/100 -> 165.2454221 | AD29: =AVERAGE(F29:AC29) -> 161.8420502 | AF29: =MAX(F29:AC29) -> 172.3493985
B30: 供給処理場2 | F30: =F22*$AH$22/100 -> 172.3493985 | H30: =H22*$AH$22/100 -> 171.1383577 | J30: =J22*$AH$22/100 -> 168.7418509 | L30: =L22*$AH$22/100 -> 165.1125368 | N30: =N22*$AH$22/100 -> 158.9936063 | P30: =P22*$AH$22/100 -> 152.2381486 | R30: =R22*$AH$22/100 -> 151.8686051 | T30: =T22*$AH$22/100 -> 152.2246817 | V30: =V22*$AH$22/100 -> 158.5788567 | X30: =X22*$AH$22/100 -> 163.0690081 | Z30: =Z22*$AH$22/100 -> 162.5441305 | AB30: =AB22*$AH$22/100 -> 165.2454221 | AD30: =AVERAGE(F30:AC30) -> 161.8420502 | AF30: =MAX(F30:AC30) -> 172.3493985
B31: 集約処理場 | F31: =F18*$AH$18/100 -> 1916.862254 | H31: =H18*$AH$18/100 -> 1903.393113 | J31: =J18*$AH$18/100 -> 1876.739273 | L31: =L18*$AH$18/100 -> 1836.374204 | N31: =N18*$AH$18/100 -> 1768.319734 | P31: =P18*$AH$18/100 -> 1693.185838 | R31: =R18*$AH$18/100 -> 1689.075792 | T31: =T18*$AH$18/100 -> 1693.03606 | V31: =V18*$AH$18/100 -> 1763.706908 | X31: =X18*$AH$18/100 -> 1813.64617 | Z31: =Z18*$AH$18/100 -> 1807.808505 | AB31: =AB18*$AH$18/100 -> 1837.852149 | AD31: =AVERAGE(F31:AC31) -> 1800 | AF31: =MAX(F31:AC31) -> 1916.862254
B32: 発電機投入ガス量 | F32: =F18+F21+F22 -> 3577.769087 | H32: =H18+H21+H22 -> 3552.629316 | J32: =J18+J21+J22 -> 3502.880679 | L32: =L18+L21+L22 -> 3427.540422 | N32: =N18+N21+N22 -> 3300.518682 | P32: =P18+P21+P22 -> 3160.283394 | R32: =R18+R21+R22 -> 3152.61211 | T32: =T18+T21+T22 -> 3160.003837 | V32: =V18+V21+V22 -> 3291.908973 | X32: =X18+X21+X22 -> 3385.11919 | Z32: =Z18+Z21+Z22 -> 3374.223354 | AB32: =AB18+AB21+AB22 -> 3430.298963 | AD32: =AVERAGE(F32:AC32) -> 3359.649001 | AF32: =MAX(F32:AC32) -> 3577.769087 | AH32: ='まとめ(Input)'!J14 -> 360
B33: 発電量 | D33: [kW] | F33: =(F29+F30+F31)/24*9.97*(-0.00002*'まとめ(Input)'!$J$14^2+0.0223*'まとめ(Input)'!$J$14+32.383)/100 -> 355.3057811 | H33: =(H29+H30+H31)/24*9.97*(-0.00002*'まとめ(Input)'!$J$14^2+0.0223*'まとめ(Input)'!$J$14+32.383)/100 -> 352.8091678 | J33: =(J29+J30+J31)/24*9.97*(-0.00002*'まとめ(Input)'!$J$14^2+0.0223*'まとめ(Input)'!$J$14+32.383)/100 -> 347.8686649 | L33: =(L29+L30+L31)/24*9.97*(-0.00002*'まとめ(Input)'!$J$14^2+0.0223*'まとめ(Input)'!$J$14+32.383)/100 -> 340.386676 | N33: =(N29+N30+N31)/24*9.97*(-0.00002*'まとめ(Input)'!$J$14^2+0.0223*'まとめ(Input)'!$J$14+32.383)/100 -> 327.7722345 | P33: =(P29+P30+P31)/24*9.97*(-0.00002*'まとめ(Input)'!$J$14^2+0.0223*'まとめ(Input)'!$J$14+32.383)/100 -> 313.8455647 | R33: =(R29+R30+R31)/24*9.97*(-0.00002*'まとめ(Input)'!$J$14^2+0.0223*'まとめ(Input)'!$J$14+32.383)/100 -> 313.0837349 | T33: =(T29+T30+T31)/24*9.97*(-0.00002*'まとめ(Input)'!$J$14^2+0.0223*'まとめ(Input)'!$J$14+32.383)/100 -> 313.8178022 | V33: =(V29+V30+V31)/24*9.97*(-0.00002*'まとめ(Input)'!$J$14^2+0.0223*'まとめ(Input)'!$J$14+32.383)/100 -> 326.9172103 | X33: =(X29+X30+X31)/24*9.97*(-0.00002*'まとめ(Input)'!$J$14^2+0.0223*'まとめ(Input)'!$J$14+32.383)/100 -> 336.1738526 | Z33: =(Z29+Z30+Z31)/24*9.97*(-0.00002*'まとめ(Input)'!$J$14^2+0.0223*'まとめ(Input)'!$J$14+32.383)/100 -> 335.0917947 | AB33: =(AB29+AB30+AB31)/24*9.97*(-0.00002*'まとめ(Input)'!$J$14^2+0.0223*'まとめ(Input)'!$J$14+32.383)/100 -> 340.6606248 | AD33: =AVERAGE(F33:AC33) -> 333.6444257 | AF33: =MAX(F33:AC33) -> 355.3057811 | AH33: =IF(AF33<800,1,IF(AF33<1600,2,3)) -> 1
B35: 【未利用消化ガス全量利用を重視する場合】
B36: 装置構成
F37: PSA(位置) | H37: 吸蔵装置 | J37: シロキサン除去装置 | L37: 余剰ガス燃焼装置 | N37: 既存ボイラ
B38: 供給処理場1 | F38: ='まとめ(Input)'!S9 -> 二次側 | H38: =IF(F38="PSA無し","×","〇") -> 〇 | J38: =IF(F38="PSA無し","〇","×") -> × | L38: 〇 | N38: 〇
B39: 供給処理場2 | F39: ='まとめ(Input)'!V9 -> 二次側 | H39: =IF(F39="PSA無し","×","〇") -> 〇 | J39: =IF(F39="PSA無し","〇","×") -> × | L39: 〇 | N39: 〇
B40: 集約処理場 | F40: ='まとめ(Input)'!Y9 -> PSA無し | H40: =IF(F40="PSA無し","×","〇") -> × | J40: =IF(F40="PSA無し","〇","×") -> 〇 | L40: × | N40: ×
B41: 利用可能消化ガス量FA | AH41: [Nm3/日]
F42: 4月 | H42: 5月 | J42: 6月 | L42: 7月 | N42: 8月 | P42: 9月 | R42: 10月 | T42: 11月 | V42: 12月 | X42: 1月 | Z42: 2月 | AB42: 3月 | AD42: 年平均 | AF42: 最大 | AH42: CH4濃度
B43: 供給処理場1 | F43: =F4 -> 525.47088 | H43: =H4 -> 548.3857053 | J43: =J4 -> 551.8831788 | L43: =L4 -> 564.0501228 | N43: =N4 -> 579.3007195 | P43: =P4 -> 549.2764632 | R43: =R4 -> 505.1882044 | T43: =T4 -> 450.1763089 | V43: =V4 -> 464.2684721 | X43: =X4 -> 427.6302423 | Z43: =Z4 -> 411.1488386 | AB43: =AB4 -> 423.1545791 | AD43: =AVERAGE(F43:AC43) -> 499.9944763 | AF43: =MAX(F43:AC43) -> 579.3007195 | AH43: ='まとめ(Input)'!AH31 -> 60
B44: 供給処理場2 | F44: =F5 -> 525.47088 | H44: =H5 -> 548.3857053 | J44: =J5 -> 551.8831788 | L44: =L5 -> 564.0501228 | N44: =N5 -> 579.3007195 | P44: =P5 -> 549.2764632 | R44: =R5 -> 505.1882044 | T44: =T5 -> 450.1763089 | V44: =V5 -> 464.2684721 | X44: =X5 -> 427.6302423 | Z44: =Z5 -> 411.1488386 | AB44: =AB5 -> 423.1545791 | AD44: =AVERAGE(F44:AC44) -> 499.9944763 | AF44: =MAX(F44:AC44) -> 579.3007195 | AH44: ='まとめ(Input)'!AH32 -> 60
B45: 集約処理場 | F45: =F6-IF($N$40="×",0,'まとめ(Input)'!F38) -> 3194.770424 | H45: =H6-IF($N$40="×",0,'まとめ(Input)'!H38) -> 3172.321855 | J45: =J6-IF($N$40="×",0,'まとめ(Input)'!J38) -> 3127.898788 | L45: =L6-IF($N$40="×",0,'まとめ(Input)'!L38) -> 3060.623674 | N45: =N6-IF($N$40="×",0,'まとめ(Input)'!N38) -> 2947.199557 | P45: =P6-IF($N$40="×",0,'まとめ(Input)'!P38) -> 2821.976397 | R45: =R6-IF($N$40="×",0,'まとめ(Input)'!R38) -> 2815.126321 | T45: =T6-IF($N$40="×",0,'まとめ(Input)'!T38) -> 2821.726767 | V45: =V6-IF($N$40="×",0,'まとめ(Input)'!V38) -> 2939.511514 | X45: =X6-IF($N$40="×",0,'まとめ(Input)'!X38) -> 3022.743616 | Z45: =Z6-IF($N$40="×",0,'まとめ(Input)'!Z38) -> 3013.014175 | AB45: =AB6-IF($N$40="×",0,'まとめ(Input)'!AB38) -> 3063.086914 | AD45: =AVERAGE(F45:AC45) -> 3000 | AF45: =MAX(F45:AC45) -> 3194.770424 | AH45: ='まとめ(Input)'!AH33 -> 60
B46: 精製ガス量FP | AH46: [Nm3/日]
F47: 4月 | H47: 5月 | J47: 6月 | L47: 7月 | N47: 8月 | P47: 9月 | R47: 10月 | T47: 11月 | V47: 12月 | X47: 1月 | Z47: 2月 | AB47: 3月 | AD47: 年平均 | AF47: 最大 | AH47: CH4濃度
B48: 供給処理場1 | F48: =F43*($AH$43-'まとめ(Input)'!$S$12)/($AH$48-'まとめ(Input)'!$S$12) -> 300.2690743 | H48: =H43*($AH$43-'まとめ(Input)'!$S$12)/($AH$48-'まとめ(Input)'!$S$12) -> 313.3632602 | J48: =J43*($AH$43-'まとめ(Input)'!$S$12)/($AH$48-'まとめ(Input)'!$S$12) -> 315.3618164 | L48: =L43*($AH$43-'まとめ(Input)'!$S$12)/($AH$48-'まとめ(Input)'!$S$12) -> 322.3143559 | N48: =N43*($AH$43-'まとめ(Input)'!$S$12)/($AH$48-'まとめ(Input)'!$S$12) -> 331.0289826 | P48: =P43*($AH$43-'まとめ(Input)'!$S$12)/($AH$48-'まとめ(Input)'!$S$12) -> 313.8722647 | R48: =R43*($AH$43-'まとめ(Input)'!$S$12)/($AH$48-'まとめ(Input)'!$S$12) -> 288.6789739 | T48: =T43*($AH$43-'まとめ(Input)'!$S$12)/($AH$48-'まとめ(Input)'!$S$12) -> 257.2436051 | V48: =V43*($AH$43-'まとめ(Input)'!$S$12)/($AH$48-'まとめ(Input)'!$S$12) -> 265.2962698 | X48: =X43*($AH$43-'まとめ(Input)'!$S$12)/($AH$48-'まとめ(Input)'!$S$12) -> 244.3601385 | Z48: =Z43*($AH$43-'まとめ(Input)'!$S$12)/($AH$48-'まとめ(Input)'!$S$12) -> 234.9421935 | AB48: =AB43*($AH$43-'まとめ(Input)'!$S$12)/($AH$48-'まとめ(Input)'!$S$12) -> 241.8026166 | AD48: =AVERAGE(F48:AC48) -> 285.7111293 | AF48: =MAX(F48:AC48) -> 331.0289826 | AH48: =IF(F38="PSA無し",'まとめ(Input)'!AH31,'まとめ(Input)'!S11) -> 90
B49: 供給処理場2 | F49: =F44*($AH$44-'まとめ(Input)'!$V$12)/($AH$49-'まとめ(Input)'!$V$12) -> 300.2690743 | H49: =H44*($AH$44-'まとめ(Input)'!$V$12)/($AH$49-'まとめ(Input)'!$V$12) -> 313.3632602 | J49: =J44*($AH$44-'まとめ(Input)'!$V$12)/($AH$49-'まとめ(Input)'!$V$12) -> 315.3618164 | L49: =L44*($AH$44-'まとめ(Input)'!$V$12)/($AH$49-'まとめ(Input)'!$V$12) -> 322.3143559 | N49: =N44*($AH$44-'まとめ(Input)'!$V$12)/($AH$49-'まとめ(Input)'!$V$12) -> 331.0289826 | P49: =P44*($AH$44-'まとめ(Input)'!$V$12)/($AH$49-'まとめ(Input)'!$V$12) -> 313.8722647 | R49: =R44*($AH$44-'まとめ(Input)'!$V$12)/($AH$49-'まとめ(Input)'!$V$12) -> 288.6789739 | T49: =T44*($AH$44-'まとめ(Input)'!$V$12)/($AH$49-'まとめ(Input)'!$V$12) -> 257.2436051 | V49: =V44*($AH$44-'まとめ(Input)'!$V$12)/($AH$49-'まとめ(Input)'!$V$12) -> 265.2962698 | X49: =X44*($AH$44-'まとめ(Input)'!$V$12)/($AH$49-'まとめ(Input)'!$V$12) -> 244.3601385 | Z49: =Z44*($AH$44-'まとめ(Input)'!$V$12)/($AH$49-'まとめ(Input)'!$V$12) -> 234.9421935 | AB49: =AB44*($AH$44-'まとめ(Input)'!$V$12)/($AH$49-'まとめ(Input)'!$V$12) -> 241.8026166 | AD49: =AVERAGE(F49:AC49) -> 285.7111293 | AF49: =MAX(F49:AC49) -> 331.0289826 | AH49: =IF(F39="PSA無し",'まとめ(Input)'!AH32,'まとめ(Input)'!V11) -> 90
B50: オフガス量FO | AH50: [Nm3/日]
F51: 4月 | H51: 5月 | J51: 6月 | L51: 7月 | N51: 8月 | P51: 9月 | R51: 10月 | T51: 11月 | V51: 12月 | X51: 1月 | Z51: 2月 | AB51: 3月 | AD51: 年平均 | AF51: 最大 | AH51: CH4濃度
B52: 供給処理場1 | F52: =F43-F48 -> 225.2018057 | H52: =H43-H48 -> 235.0224451 | J52: =J43-J48 -> 236.5213623 | L52: =L43-L48 -> 241.7357669 | N52: =N43-N48 -> 248.2717369 | P52: =P43-P48 -> 235.4041985 | R52: =R43-R48 -> 216.5092304 | T52: =T43-T48 -> 192.9327038 | V52: =V43-V48 -> 198.9722023 | X52: =X43-X48 -> 183.2701039 | Z52: =Z43-Z48 -> 176.2066451 | AB52: =AB43-AB48 -> 181.3519625 | AD52: =AVERAGE(F52:AC52) -> 214.283347 | AF52: =MAX(F52:AC52) -> 248.2717369 | AH52: ='まとめ(Input)'!S12 -> 20
B53: 供給処理場2 | F53: =F44-F49 -> 225.2018057 | H53: =H44-H49 -> 235.0224451 | J53: =J44-J49 -> 236.5213623 | L53: =L44-L49 -> 241.7357669 | N53: =N44-N49 -> 248.2717369 | P53: =P44-P49 -> 235.4041985 | R53: =R44-R49 -> 216.5092304 | T53: =T44-T49 -> 192.9327038 | V53: =V44-V49 -> 198.9722023 | X53: =X44-X49 -> 183.2701039 | Z53: =Z44-Z49 -> 176.2066451 | AB53: =AB44-AB49 -> 181.3519625 | AD53: =AVERAGE(F53:AC53) -> 214.283347 | AF53: =MAX(F53:AC53) -> 248.2717369 | AH53: ='まとめ(Input)'!V12 -> 20
B54: 発電機利用ガス量(メタン量) | AH54: [Nm3/日]
F55: 4月 | H55: 5月 | J55: 6月 | L55: 7月 | N55: 8月 | P55: 9月 | R55: 10月 | T55: 11月 | V55: 12月 | X55: 1月 | Z55: 2月 | AB55: 3月 | AD55: 年平均 | AF55: 最大 | AH55: 発電機
B56: 供給処理場1 | F56: =F48*$AH$48/100 -> 270.2421669 | H56: =H48*$AH$48/100 -> 282.0269342 | J56: =J48*$AH$48/100 -> 283.8256348 | L56: =L48*$AH$48/100 -> 290.0829203 | N56: =N48*$AH$48/100 -> 297.9260843 | P56: =P48*$AH$48/100 -> 282.4850382 | R56: =R48*$AH$48/100 -> 259.8110765 | T56: =T48*$AH$48/100 -> 231.5192446 | V56: =V48*$AH$48/100 -> 238.7666428 | X56: =X48*$AH$48/100 -> 219.9241246 | Z56: =Z48*$AH$48/100 -> 211.4479741 | AB56: =AB48*$AH$48/100 -> 217.6223549 | AD56: =AVERAGE(F56:AC56) -> 257.1400164 | AF56: =MAX(F56:AC56) -> 297.9260843
B57: 供給処理場2 | F57: =F49*$AH$49/100 -> 270.2421669 | H57: =H49*$AH$49/100 -> 282.0269342 | J57: =J49*$AH$49/100 -> 283.8256348 | L57: =L49*$AH$49/100 -> 290.0829203 | N57: =N49*$AH$49/100 -> 297.9260843 | P57: =P49*$AH$49/100 -> 282.4850382 | R57: =R49*$AH$49/100 -> 259.8110765 | T57: =T49*$AH$49/100 -> 231.5192446 | V57: =V49*$AH$49/100 -> 238.7666428 | X57: =X49*$AH$49/100 -> 219.9241246 | Z57: =Z49*$AH$49/100 -> 211.4479741 | AB57: =AB49*$AH$49/100 -> 217.6223549 | AD57: =AVERAGE(F57:AC57) -> 257.1400164 | AF57: =MAX(F57:AC57) -> 297.9260843
B58: 集約処理場 | F58: =F45*$AH$45/100 -> 1916.862254 | H58: =H45*$AH$45/100 -> 1903.393113 | J58: =J45*$AH$45/100 -> 1876.739273 | L58: =L45*$AH$45/100 -> 1836.374204 | N58: =N45*$AH$45/100 -> 1768.319734 | P58: =P45*$AH$45/100 -> 1693.185838 | R58: =R45*$AH$45/100 -> 1689.075792 | T58: =T45*$AH$45/100 -> 1693.03606 | V58: =V45*$AH$45/100 -> 1763.706908 | X58: =X45*$AH$45/100 -> 1813.64617 | Z58: =Z45*$AH$45/100 -> 1807.808505 | AB58: =AB45*$AH$45/100 -> 1837.852149 | AD58: =AVERAGE(F58:AC58) -> 1800 | AF58: =MAX(F58:AC58) -> 1916.862254
B59: 発電機投入ガス量 | F59: =F45+F48+F49 -> 3795.308573 | H59: =H45+H48+H49 -> 3799.048375 | J59: =J45+J48+J49 -> 3758.622421 | L59: =L45+L48+L49 -> 3705.252386 | N59: =N45+N48+N49 -> 3609.257522 | P59: =P45+P48+P49 -> 3449.720926 | R59: =R45+R48+R49 -> 3392.484269 | T59: =T45+T48+T49 -> 3336.213977 | V59: =V45+V48+V49 -> 3470.104054 | X59: =X45+X48+X49 -> 3511.463893 | Z59: =Z45+Z48+Z49 -> 3482.898562 | AB59: =AB45+AB48+AB49 -> 3546.692147 | AD59: =AVERAGE(F59:AC59) -> 3571.422259 | AF59: =MAX(F59:AC59) -> 3799.048375 | AH59: ='まとめ(Input)'!S14 -> 400
B60: 発電量 | D60: [kW] | F60: =(F56+F57+F58)/24*9.97*(-0.00002*$AH$59^2+0.0223*$AH$59+32.383)/100 -> 388.9640842 | H60: =(H56+H57+H58)/24*9.97*(-0.00002*$AH$59^2+0.0223*$AH$59+32.383)/100 -> 390.5628372 | J60: =(J56+J57+J58)/24*9.97*(-0.00002*$AH$59^2+0.0223*$AH$59+32.383)/100 -> 386.9133208 | L60: =(L56+L57+L58)/24*9.97*(-0.00002*$AH$59^2+0.0223*$AH$59+32.383)/100 -> 382.5049711 | N60: =(N56+N57+N58)/24*9.97*(-0.00002*$AH$59^2+0.0223*$AH$59+32.383)/100 -> 374.2158162 | P60: =(P56+P57+P58)/24*9.97*(-0.00002*$AH$59^2+0.0223*$AH$59+32.383)/100 -> 357.4349469 | R60: =(R56+R57+R58)/24*9.97*(-0.00002*$AH$59^2+0.0223*$AH$59+32.383)/100 -> 349.6064323 | T60: =(T56+T57+T58)/24*9.97*(-0.00002*$AH$59^2+0.0223*$AH$59+32.383)/100 -> 341.2768742 | V60: =(V56+V57+V58)/24*9.97*(-0.00002*$AH$59^2+0.0223*$AH$59+32.383)/100 -> 354.7574216 | X60: =(X56+X57+X58)/24*9.97*(-0.00002*$AH$59^2+0.0223*$AH$59+32.383)/100 -> 356.6970965 | Z60: =(Z56+Z57+Z58)/24*9.97*(-0.00002*$AH$59^2+0.0223*$AH$59+32.383)/100 -> 353.0897591 | AB60: =(AB56+AB57+AB58)/24*9.97*(-0.00002*$AH$59^2+0.0223*$AH$59+32.383)/100 -> 359.7998924 | AD60: =AVERAGE(F60:AC60) -> 366.318621 | AF60: =MAX(F60:AC60) -> 390.5628372 | AH60: =IF(AF60<800,1,IF(AF60<1600,2,3)) -> 1
H63: 【費用回収年を重視する場合】 | V63: 【未利用消化ガス全量利用を重視する場合】
H64: 供給処理場1 | K64: 供給処理場2 | N64: 集約処理場 | Q64: 共通 | V64: 供給処理場1 | Y64: 供給処理場2 | AB64: 集約処理場 | AE64: 共通
B65: 建設コスト[千円] | C65: PSA | H65: =IF(F11="PSA無し"," ",IF(AF16/24<150,1,IF(AF16/24<300,2,3))) -> 1 | I65: =IF(F11="PSA無し",0,ROUNDUP(-1.5609*ROUNDUP(AF16/24/H65,-1)^2+488.11*ROUNDUP(AF16/24/H65,-1),-2)*H65+ROUNDUP(35*AF16/24/H65,-1)*H65) -> 9670 | K65: =IF(F12="PSA無し"," ",IF(AF17/24<150,1,IF(AF17/24<300,2,3))) -> 1 | L65: =IF(F12="PSA無し",0,ROUNDUP(-1.5609*ROUNDUP(AF17/24/K65,-1)^2+488.11*ROUNDUP(AF17/24/K65,-1),-2)*K65+ROUNDUP(35*AF17/24/K65,-1)*K65) -> 9670 | N65: =IF(F13="PSA無し"," ",IF(AF18/24<150,1,IF(AF18/24<300,2,3))) ->  | O65: =IF(F13="PSA無し",0,ROUNDUP(-1.5609*ROUNDUP(AF18/24,-1)^2+488.11*ROUNDUP(AF18/24,-1)+35*ROUNDUP(AF18/24,0),-1)) -> 0 | R65: 0 | V65: =IF(F38="PSA無し"," ",IF(AF43/24<150,1,IF(AF43/24<300,2,3))) -> 1 | W65: =IF(F38="PSA無し",0,ROUNDUP(-1.5609*ROUNDUP(AF43/24/V65,-1)^2+488.11*ROUNDUP(AF43/24/V65,-1),-2)*V65+ROUNDUP(35*AF43/24/V65,-1)*V65) -> 14150 | Y65: =IF(F39="PSA無し"," ",IF(AF44/24<150,1,IF(AF44/24<300,2,3))) -> 1 | Z65: =IF(F39="PSA無し",0,ROUNDUP(-1.5609*ROUNDUP(AF44/24/Y65,-1)^2+488.11*ROUNDUP(AF44/24/Y65,-1),-2)*Y65+ROUNDUP(35*AF44/24/Y65,-1)*Y65) -> 14150 | AB65: =IF(F40="PSA無し"," ",IF(AF45/24<150,1,IF(AF45/24<300,2,3))) ->  | AC65: =IF(F40="PSA無し",0,ROUNDUP(-1.5609*ROUNDUP(AF45/24/AB65,-1)^2+488.11*ROUNDUP(AF45/24/AB65,-1)*AB65+35*ROUNDUP(AF45/24/AB65,0),-1)*AB65) -> 0 | AF65: 0
C66: 吸蔵装置 | H66: =IF(F11="PSA無し"," ",IF(AF21/24<100,1,IF(AF21/24<200,2,3))) -> 1 | I66: =IF(I65=0,0,ROUNDUP(-0.002*ROUNDUP(AF21/24/H66,-1)^2+251.03*ROUNDUP(AF21/24/H66,-1),-2)*H66) -> 2600 | K66: =IF(F12="PSA無し"," ",IF(AF22/24<100,1,IF(AF22/24<200,2,3))) -> 1 | L66: =IF(L65=0,0,ROUNDUP(-0.002*ROUNDUP(AF22/24/K66,-1)^2+251.03*ROUNDUP(AF22/24/K66,-1),-2)*K66) -> 2600 | N66: =IF(F13="PSA無し"," ",IF(AF18/24<100,1,IF(AF18/24<200,2,3))) ->  | O66: =IF(O65=0,0,ROUNDUP(-0.002*ROUNDUP(AF18/24/N66,-1)^2+251.03*ROUNDUP(AF18/24/N66,-1),-1)*N66) -> 0 | R66: 0 | V66: =IF(F38="PSA無し"," ",IF(AF48/24<100,1,IF(AF48/24<200,2,3))) -> 1 | W66: =IF(W65=0,0,ROUNDUP(-0.002*ROUNDUP(AF48/24/V66,-1)^2+251.03*ROUNDUP(AF48/24/V66,-1),-2)*V66) -> 5100 | Y66: =IF(F39="PSA無し"," ",IF(AF49/24<100,1,IF(AF49/24<200,2,3))) -> 1 | Z66: =IF(Z65=0,0,ROUNDUP(-0.002*ROUNDUP(AF49/24/Y66,-1)^2+251.03*ROUNDUP(AF49/24/Y66,-1),-2)*Y66) -> 5100 | AB66: =IF(F40="PSA無し"," ",IF(AF45/24<100,1,IF(AF45/24<200,2,3))) ->  | AC66: =IF(AC65=0,0,ROUNDUP(-0.002*ROUNDUP(AF45/24/AB66,-1)^2+251.03*ROUNDUP(AF45/24/AB66,-1),-1)*AB66) -> 0 | AF66: 0
C67: シロキサン除去装置 | H67: =IF(F11="PSA無し",IF(AF16/24<500,1,IF(AF16/24<1000,2,3))," ") ->  | I67: =IF(I65=0,ROUNDUP(-0.0015*ROUNDUP(AF16/24/H67,-1)^2+91.4*ROUNDUP(AF16/24/H67,-1),-1)*H67,0) -> 0 | K67: =IF(F12="PSA無し",IF(AF17/24<500,1,IF(AF17/24<1000,2,3))," ") ->  | L67: =IF(L65=0,ROUNDUP(-0.0015*ROUNDUP(AF17/24/K67,-1)^2+91.4*ROUNDUP(AF17/24/K67,-1),-1)*K67,0) -> 0 | N67: =IF(F13="PSA無し",IF(AF18/24<500,1,IF(AF18/24<1000,2,3))," ") -> 1 | O67: =IF(O65=0,ROUNDUP(-0.0015*ROUNDUP(AF18/24/N67,-1)^2+91.4*ROUNDUP(AF18/24/N67,-1),-2)*N67,0) -> 12800 | R67: 0 | V67: =IF(F38="PSA無し",IF(AF43/24<500,1,IF(AF43/24<1000,2,3))," ") ->  | W67: =IF(W65=0,ROUNDUP(-0.0015*ROUNDUP(AF43/24/V67,-1)^2+91.4*ROUNDUP(AF43/24/V67,-1),-1)*V67,0) -> 0 | Y67: =IF(F39="PSA無し",IF(AF44/24<500,1,IF(AF44/24<1000,2,3))," ") ->  | Z67: =IF(Z65=0,ROUNDUP(-0.0015*ROUNDUP(AF44/24/Y67,-1)^2+91.4*ROUNDUP(AF44/24/Y67,-1),-1)*Y67,0) -> 0 | AB67: =IF(F40="PSA無し",IF(AF45/24<500,1,IF(AF45/24<1000,2,3))," ") -> 1 | AC67: =IF(AC65=0,ROUNDUP(-0.0015*ROUNDUP(AF45/24/AB67,-1)^2+91.4*ROUNDUP(AF45/24/AB67,-1),-2)*AB67,0) -> 12800 | AF67: 0
C68: 余剰ガス燃焼装置 | I68: 0 | L68: 0 | O68: 0 | R68: 0 | V68: 1 | W68: =(50*ROUNDUP(AF52/24,-1)+2000)*V68 -> 3000 | Y68: 1 | Z68: =(50*ROUNDUP(AF53/24,-1)+2000)*Y68 -> 3000 | AC68: 0 | AF68: 0
C69: 吸蔵容器 | I69: 0 | L69: 0 | O69: 0 | Q69: ='まとめ(Input)'!$J$16+'まとめ(Input)'!$M$16 -> 6 | R69: =ROUNDUP(ROUNDUP(AF21/24*'まとめ(Input)'!$J$15/45,0)*875+(ROUNDUP(AF21/24*'まとめ(Input)'!$J$15/45,0)/5)^0.6*6760,-2)*'まとめ(Input)'!$J$16+ROUNDUP(ROUNDUP(AF22/24*'まとめ(Input)'!$M$15/45,0)*875+(ROUNDUP(AF22/24*'まとめ(Input)'!$M$15/45,0)/5)^0.6*6760,-2)*'まとめ(Input)'!$M$16 -> 67200 | W69: 0 | Z69: 0 | AC69: 0 | AE69: ='まとめ(Input)'!$S$16+'まとめ(Input)'!$V$16 -> 6 | AF69: =ROUNDUP(ROUNDUP(AF48/24*'まとめ(Input)'!$S$15/45,0)*875+(ROUNDUP(AF48/24*'まとめ(Input)'!$S$15/45,0)/5)^0.6*6760,-2)*'まとめ(Input)'!$S$16+ROUNDUP(ROUNDUP(AF49/24*'まとめ(Input)'!$V$15/45,0)*875+(ROUNDUP(AF49/24*'まとめ(Input)'!$V$15/45,0)/5)^0.6*6760,-2)*'まとめ(Input)'!$V$16 -> 96000
C70: 発電機,ガスホルダ | I70: 0 | L70: 0 | N70: =AH33 -> 1 | O70: =ROUNDUP(-0.2161*AH32^2+390.07*AH32,-2)*AH33+ROUNDUP(CEILING(AF32/24*5/60,5)^0.55*1800,-2)*AH33 -> 120500 | R70: 0 | W70: 0 | Z70: 0 | AB70: =AH60 -> 1 | AC70: =ROUNDUP(-0.2161*AH59^2+390.07*AH59,-2)*AB70+ROUNDUP(CEILING(AF59/24*5/60,5)^0.55*1800,-2)*AB70 -> 129500 | AF70: 0
C71: トラック | I71: 0 | L71: 0 | O71: 0 | R71: =IF(MAX(ROUNDUP(AF21/24*'まとめ(Input)'!$J$15/45,0),ROUNDUP(AF22/24*'まとめ(Input)'!$M$15/45,0))<6,28500,33000) -> 28500 | W71: 0 | Z71: 0 | AC71: 0 | AF71: =IF(MAX(ROUNDUP(AF48/24*'まとめ(Input)'!$S$15/45,0),ROUNDUP(AF49/24*'まとめ(Input)'!$V$15/45,0))<6,28500,33000) -> 33000
C72: 工事費 | I72: =26.5*ROUNDUP(AF16/24,-1)+14300+ROUNDUP(-2.0458*(-0.0001*ROUNDUP(AF16/24,-1)^2+0.2902*ROUNDUP(AF16/24,-1)+7.4901)^2+135.41*(-0.0001*ROUNDUP(AF16/24,-1)^2+0.2902*ROUNDUP(AF16/24,-1)+7.4901)+150,-1) -> 16420 | L72: =26.5*ROUNDUP(AF17/24,-1)+14300+ROUNDUP(-2.0458*(-0.0001*ROUNDUP(AF17/24,-1)^2+0.2902*ROUNDUP(AF17/24,-1)+7.4901)^2+135.41*(-0.0001*ROUNDUP(AF17/24,-1)^2+0.2902*ROUNDUP(AF17/24,-1)+7.4901)+150,-1) -> 16420 | O72: =ROUNDUP(16.3*ROUNDUP(IF(F13="PSA無し",0,AF18/24),-1)+6.9*ROUNDUP(AF18/24,-1)+18600,-1)+ROUNDUP(40.362*AH32*AH33,-2) -> 34170 | R72: 0 | W72: =26.5*ROUNDUP(AF43/24,-1)+14300+ROUNDUP(-2.0458*(-0.0001*ROUNDUP(AF43/24,-1)^2+0.2902*ROUNDUP(AF43/24,-1)+7.4901)^2+135.41*(-0.0001*ROUNDUP(AF43/24,-1)^2+0.2902*ROUNDUP(AF43/24,-1)+7.4901)+150,-1) -> 16905 | Z72: =26.5*ROUNDUP(AF44/24,-1)+14300+ROUNDUP(-2.0458*(-0.0001*ROUNDUP(AF44/24,-1)^2+0.2902*ROUNDUP(AF44/24,-1)+7.4901)^2+135.41*(-0.0001*ROUNDUP(AF44/24,-1)^2+0.2902*ROUNDUP(AF44/24,-1)+7.4901)+150,-1) -> 16905 | AC72: =ROUNDUP(16.3*ROUNDUP(IF(F40="PSA無し",0,AF45/24),-1)+6.9*ROUNDUP(AF45/24,-1)+18600,-1)+ROUNDUP(40.362*AH59*AH60,-2) -> 35770 | AF72: 0
C73: 共通費用負担 | I73: =AD29/(AD29+AD30+AD31)*SUM(R65:S72) -> 7293.120575 | L73: =AD30/(AD29+AD30+AD31)*SUM(R65:S72) -> 7293.120575 | O73: =AD31/(AD29+AD30+AD31)*SUM(R65:S72) -> 81113.75885 | R73: 0 | W73: =AD56/(AD56+AD57+AD58)*SUM(AF65:AG72) -> 14333.21017 | Z73: =AD57/(AD56+AD57+AD58)*SUM(AF65:AG72) -> 14333.21017 | AC73: =AD58/(AD56+AD57+AD58)*SUM(AF65:AG72) -> 100333.5797 | AF73: 0
C74: 建設費合計 | I74: =SUM(I65:J73) -> 35983.12058 | L74: =SUM(L65:M73) -> 35983.12058 | O74: =SUM(O65:P73) -> 248583.7588 | T74: =SUM(I74:P74) -> 320550 | W74: =SUM(W65:X73) -> 53488.21017 | Z74: =SUM(Z65:AA73) -> 53488.21017 | AC74: =SUM(AC65:AD73) -> 278403.5797 | AH74: =SUM(W74:AC74) -> 385380
B75: 維持管理コスト[千円/年] | C75: 人件費（装置全般） | I75: ='まとめ(Input)'!$Y$26*12*'まとめ(Input)'!$Y$25 -> 288 | L75: ='まとめ(Input)'!$Y$26*12*'まとめ(Input)'!$Y$25 -> 288 | O75: ='まとめ(Input)'!$Y$26*12*'まとめ(Input)'!$Y$25 -> 288 | R75: 0 | W75: ='まとめ(Input)'!$Y$26*12*'まとめ(Input)'!$Y$25 -> 288 | Z75: ='まとめ(Input)'!$Y$26*12*'まとめ(Input)'!$Y$25 -> 288 | AC75: ='まとめ(Input)'!$Y$26*12*'まとめ(Input)'!$Y$25 -> 288 | AF75: 0
C76: 人件費（運転手） | I76: 0 | L76: 0 | O76: 0 | R76: =(('まとめ(Input)'!J17+'まとめ(Input)'!M17)*'まとめ(Input)'!$Y$25+('まとめ(Input)'!J18+'まとめ(Input)'!M18)*'まとめ(Input)'!$Y$25*1.25)/2*'まとめ(Input)'!Y24 -> 3675 | W76: 0 | Z76: 0 | AC76: 0 | AF76: =(('まとめ(Input)'!S17+'まとめ(Input)'!V17)*'まとめ(Input)'!$Y$25+('まとめ(Input)'!S18+'まとめ(Input)'!V18)*'まとめ(Input)'!$Y$25*1.25)/2*'まとめ(Input)'!Y24 -> 3675
C77: 運搬燃料費 | I77: 0 | L77: 0 | O77: 0 | R77: =('まとめ(Input)'!$Q$20*'まとめ(Input)'!$J$19+'まとめ(Input)'!$Z$20*'まとめ(Input)'!$M$19)*2*'まとめ(Input)'!$J$21/'まとめ(Input)'!$J$22*'まとめ(Input)'!$Y$24/1000 -> 504 | W77: 0 | Z77: 0 | AC77: 0 | AF77: =('まとめ(Input)'!$Q$20*'まとめ(Input)'!$S$19+'まとめ(Input)'!$Z$20*'まとめ(Input)'!$V$19)*2*'まとめ(Input)'!$J$21/'まとめ(Input)'!$J$22*'まとめ(Input)'!$Y$24/1000 -> 504
C78: 消耗品費 | I78: =IF(I65>0,AF16/24*35/10,0)+IF(I68>0,'まとめ(Input)'!$D$26*'まとめ(Input)'!$D$24*'まとめ(Input)'!$Y$24/1000+'まとめ(Input)'!$D$25*12,0) -> 46.54497644 | L78: =IF(L65>0,AF17/24*35/10,0)+IF(L68>0,'まとめ(Input)'!$D$26*'まとめ(Input)'!$D$24*'まとめ(Input)'!$Y$24/1000+'まとめ(Input)'!$D$25*12,0) -> 46.54497644 | O78: =IF(O65>0,AF18/24*35/10,0)+IF(O68>0,'まとめ(Input)'!$D$26*'まとめ(Input)'!$D$24*'まとめ(Input)'!$Y$24/1000+'まとめ(Input)'!$D$25*12,0) -> 0 | R78: 0 | W78: =IF(W65>0,AF43/24*35/10,0)+IF(W68>0,'まとめ(Input)'!$D$26*'まとめ(Input)'!$D$24*'まとめ(Input)'!$Y$24/1000+'まとめ(Input)'!$D$25*12,0) -> 326.4813549 | Z78: =IF(Z65>0,AF44/24*35/10,0)+IF(Z68>0,'まとめ(Input)'!$D$26*'まとめ(Input)'!$D$24*'まとめ(Input)'!$Y$24/1000+'まとめ(Input)'!$D$25*12,0) -> 326.4813549 | AC78: =IF(AC65>0,AF45/24*35/10,0)+IF(AC68>0,'まとめ(Input)'!$D$26*'まとめ(Input)'!$D$24*'まとめ(Input)'!$Y$24/1000+'まとめ(Input)'!$D$25*12,0) -> 0 | AF78: 0
C79: 修繕費 | I79: =ROUNDUP((I65+I66+I68)*0.02,0) -> 246 | L79: =ROUNDUP((L65+L66+L68)*0.02,0) -> 246 | O79: =ROUNDUP(-0.0136*ROUNDUP(AF18/24,-1)^2+9.8405*ROUNDUP(AF18/24,-1)+ROUNDUP(-0.0328*AH32^2+40.439*AH32,-2)*AH33+(O65+O66+O68+CEILING((AF21+AF22+AF18)/24*5/60,5)^0.55*1800)*0.02,-1) -> 11680 | R79: =ROUNDUP(IF(R71=28500,836,876)+(R69-AF21/24*'まとめ(Input)'!$J$15/45*875*'まとめ(Input)'!$J$16-AF22/24*'まとめ(Input)'!$M$15/45*875*'まとめ(Input)'!$M$16)*0.02,-1) -> 1740 | W79: =ROUNDUP((W65+W66+W68)*0.02,0) -> 445 | Z79: =ROUNDUP((Z65+Z66+Z68)*0.02,0) -> 445 | AC79: =ROUNDUP(-0.0136*ROUNDUP(AF45/24,-1)^2+9.8405*ROUNDUP(AF45/24,-1)+ROUNDUP(-0.0328*AH59^2+40.439*AH59,-2)*AH60+(AC65+AC66+AC68+CEILING((AF48+AF49+AF45)/24*5/60,5)^0.55*1800)*0.02,-1) -> 12280 | AF79: =ROUNDUP(IF(AF71=28500,836,876)+(AF69-AF48/24*'まとめ(Input)'!$S$15/45*875*'まとめ(Input)'!$S$16-AF49/24*'まとめ(Input)'!$V$15/45*875*'まとめ(Input)'!$V$16)*0.02,-1) -> 2030
C80: 消費電力 | I80: =(ROUNDUP(-0.0002*(AD16/24)^2+0.0913*(AD16/24),1)+ROUNDUP((-0.0006*(AD21/24)^2+0.1883*(AD21/24))/2+1.5,1))*'まとめ(Input)'!$Y$24*'まとめ(Input)'!$AF$25/1000*24 -> 428.4 | L80: =(ROUNDUP(-0.0002*(AD17/24)^2+0.0913*(AD17/24),1)+ROUNDUP((-0.0006*(AD22/24)^2+0.1883*(AD22/24))/2+1.5,1))*'まとめ(Input)'!$Y$24*'まとめ(Input)'!$AF$25/1000*24 -> 428.4 | O80: 0 | R80: 0 | W80: =(ROUNDUP(-0.0002*(AD43/24)^2+0.0913*(AD43/24),1)+ROUNDUP((-0.0006*(AD48/24)^2+0.1883*(AD48/24))/2+1.5+IF(W68>0,0.5,0),1))*'まとめ(Input)'!$Y$24*'まとめ(Input)'!$AF$25/1000*24 -> 630 | Z80: =(ROUNDUP(-0.0002*(AD44/24)^2+0.0913*(AD44/24),1)+ROUNDUP((-0.0006*(AD49/24)^2+0.1883*(AD49/24))/2+1.5+IF(Z68>0,0.5,0),1))*'まとめ(Input)'!$Y$24*'まとめ(Input)'!$AF$25/1000*24 -> 630 | AC80: 0 | AF80: 0
C81: 共通費用負担 | I81: =AD29/(AD29+AD30+AD31)*SUM(R75:S80) -> 451.0760782 | L81: =AD30/(AD29+AD30+AD31)*SUM(R75:S80) -> 451.0760782 | O81: =AD31/(AD29+AD30+AD31)*SUM(R75:S80) -> 5016.847844 | R81: 0 | W81: =AD56/(AD56+AD57+AD58)*SUM(AF75:AG80) -> 689.882961 | Z81: =AD57/(AD56+AD57+AD58)*SUM(AF75:AG80) -> 689.882961 | AC81: =AD58/(AD56+AD57+AD58)*SUM(AF75:AG80) -> 4829.234078 | AF81: 0
C82: 維持管理費合計 | I82: =SUM(I75:J81) -> 1460.021055 | L82: =SUM(L75:M81) -> 1460.021055 | O82: =SUM(O75:P81) -> 16984.84784 | T82: =SUM(I82:P82) -> 19904.88995 | W82: =SUM(W75:X81) -> 2379.364316 | Z82: =SUM(Z75:AA81) -> 2379.364316 | AC82: =SUM(AC75:AD81) -> 17397.23408 | AH82: =SUM(W82:AD82) -> 22155.96271
B83: 発電による電力削減分[千円/年] | I83: =AD29/24*9.97*(-0.00002*AH32^2+0.0223*AH32+32.383)/100*24*'まとめ(Input)'!$Y$24*'まとめ(Input)'!$AF$24/1000 -> 3203.729752 | L83: =AD30/24*9.97*(-0.00002*AH32^2+0.0223*AH32+32.383)/100*24*'まとめ(Input)'!$Y$24*'まとめ(Input)'!$AF$24/1000 -> 3203.729752 | O83: =AD31/24*9.97*(-0.00002*AH32^2+0.0223*AH32+32.383)/100*24*'まとめ(Input)'!$Y$24*'まとめ(Input)'!$AF$24/1000 -> 35631.73814 | T83: =SUM(H83:P83) -> 42039.19764 | W83: =AD56/24*9.97*(-0.00002*AH59^2+0.0223*AH59+32.383)/100*24*'まとめ(Input)'!$Y$24*'まとめ(Input)'!$AF$24/1000 -> 5128.416628 | Z83: =AD57/24*9.97*(-0.00002*AH59^2+0.0223*AH59+32.383)/100*24*'まとめ(Input)'!$Y$24*'まとめ(Input)'!$AF$24/1000 -> 5128.416628 | AC83: =AD31/24*9.97*(-0.00002*AH59^2+0.0223*AH59+32.383)/100*24*'まとめ(Input)'!$Y$24*'まとめ(Input)'!$AF$24/1000 -> 35899.313 | AH83: =SUM(V83:AD83) -> 46156.14625
B84: 費用回収年[年] | T84: =T74/(T83-T82) -> 14.4820432 | AH84: =AH74/(AH83-AH82) -> 16.0573772
B85: エネルギー創出量[GJ/年] | T85: =(AD33*24*'まとめ(Input)'!$Y$24*'まとめ(Input)'!$Q$24-(ROUNDUP(-0.0002*(AD16/24)^2+0.0913*(AD16/24),1)+ROUNDUP((-0.0006*(AD21/24)^2+0.1883*(AD21/24))/2+1.5,1)+ROUNDUP(-0.0002*(AD17/24)^2+0.0913*(AD17/24),1)+ROUNDUP((-0.0006*(AD22/24)^2+0.1883*(AD22/24))/2+1.5,1))*24*'まとめ(Input)'!$Y$24*'まとめ(Input)'!$Q$24-('まとめ(Input)'!Q20*'まとめ(Input)'!J19+'まとめ(Input)'!Z20*'まとめ(Input)'!M19)*2/'まとめ(Input)'!$J$22*'まとめ(Input)'!$Y$24*'まとめ(Input)'!$Q$25)/1000 -> 25850.29493 | AH85: =(AD60*24*'まとめ(Input)'!$Y$24*'まとめ(Input)'!$Q$24-(ROUNDUP(-0.0002*(AD43/24)^2+0.0913*(AD43/24),1)+ROUNDUP((-0.0006*(AD48/24)^2+0.1883*(AD48/24))/2+1.5+IF(W68>0,0.5,0),1)+ROUNDUP(-0.0002*(AD44/24)^2+0.0913*(AD44/24),1)+ROUNDUP((-0.0006*(AD49/24)^2+0.1883*(AD49/24))/2+1.5+IF(Z68>0,0.5,0),1))*24*'まとめ(Input)'!$Y$24*'まとめ(Input)'!$Q$24-('まとめ(Input)'!Q20*'まとめ(Input)'!S19+'まとめ(Input)'!Z20*'まとめ(Input)'!V19)*2/'まとめ(Input)'!$J$22*'まとめ(Input)'!$Y$24*'まとめ(Input)'!$Q$25-(V68+Y68+AB68)*'まとめ(Input)'!$D$26*'まとめ(Input)'!$Y$24/0.0224*0.044*'まとめ(Input)'!$Q$26)/1000 -> 28060.70938
B86: GHG削減量[t-CO2/年] | T86: =(AD33*24*'まとめ(Input)'!$Y$24*'まとめ(Input)'!$J$24-(ROUNDUP(-0.0002*(AD16/24)^2+0.0913*(AD16/24),1)+ROUNDUP((-0.0006*(AD21/24)^2+0.1883*(AD21/24))/2+1.5,1)+ROUNDUP(-0.0002*(AD17/24)^2+0.0913*(AD17/24),1)+ROUNDUP((-0.0006*(AD22/24)^2+0.1883*(AD22/24))/2+1.5,1))*24*'まとめ(Input)'!$Y$24*'まとめ(Input)'!$J$24-('まとめ(Input)'!Q20*'まとめ(Input)'!J19+'まとめ(Input)'!Z20*'まとめ(Input)'!M19)*2/'まとめ(Input)'!$J$22*'まとめ(Input)'!$Y$24*'まとめ(Input)'!$J$25)/1000 -> 1392.944271 | AH86: =(AD60*24*'まとめ(Input)'!$Y$24*'まとめ(Input)'!$J$24-(ROUNDUP(-0.0002*(AD43/24)^2+0.0913*(AD43/24),1)+ROUNDUP((-0.0006*(AD48/24)^2+0.1883*(AD48/24))/2+1.5+IF(W68>0,0.5,0),1)+ROUNDUP(-0.0002*(AD44/24)^2+0.0913*(AD44/24),1)+ROUNDUP((-0.0006*(AD49/24)^2+0.1883*(AD49/24))/2+1.5+IF(Z68>0,0.5,0),1))*24*'まとめ(Input)'!$Y$24*'まとめ(Input)'!$J$24-('まとめ(Input)'!Q20*'まとめ(Input)'!J19+'まとめ(Input)'!Z20*'まとめ(Input)'!M19)*2/'まとめ(Input)'!$J$22*'まとめ(Input)'!$Y$24*'まとめ(Input)'!$J$25-(V68+Y68+AB68)*'まとめ(Input)'!$D$26*'まとめ(Input)'!$Y$24/0.0224*0.044*'まとめ(Input)'!$J$26)/1000 -> 1511.45689
